fUST/lending_fUST_20260121
["ID","MTS","AMOUNT","RATE_DAILY","PERIOD"]
[402910064,1768982961451,-295.41765991,0.00012328,2]
[402910065,1768982961473,-500.0,0.00012328,2]
[402910066,1768982961494,-500.0,0.00012328,2]
[402910067,1768982961515,-413.50510657,0.00012328,2]
[402910068,1768982961535,-300.0,0.00012328,2]
[402910069,1768982961555,-300.0,0.00012328,2]
[402910070,1768982961575,-45.4623496,0.00012328,2]
[402910084,1768983032052,-3362.37997149,0.00012205,2]
[402910086,1768983032258,-592.0,0.00012205,2]
[402910088,1768983032268,-300.0,0.00012328,2]
[402910089,1768983032277,-300.0,0.00012328,2]
[402910091,1768983032286,-1200.0,0.00012328,2]
[402910093,1768983032295,-500.0,0.00012329,2]
[402910095,1768983032306,-50000.0,0.00012329,2]
[402910097,1768983032316,-228.7,0.00012329,2]
[402910099,1768983032326,-190.59,0.00012329,2]
[402910100,1768983032335,-158.82,0.00012329,2]
[402910102,1768983032344,-794.13,0.00012329,2]
[402910103,1768983032353,-1792.0,0.00012475,5]
[402910104,1768983032362,-151.0,0.00013164,2]
[402910105,1768983032372,-190.88320984,0.00013164,2]
[402910106,1768983032381,-301.26359191,0.00013171,2]
[402910107,1768983032390,-275.0243498,0.00013171,2]
[402910109,1768983032399,-109231.63818574,0.00013172,2]
[402910111,1768983032413,-268.96120998,0.00013172,2]
[402910113,1768983032428,-331.1208664,0.00013172,2]
[402910134,1768983038520,-2500.38270243,0.00013172,2]
[402910135,1768983038684,-3816.77655907,0.00013172,2]
[402910182,1768983040441,-145.54910055,0.00013172,2]
[402910472,1768983043386,-363.5037033,0.00013172,2]
[402911024,1768983326007,2336.06,0.0001,2]
[402911030,1768984046127,-281.52459085,0.00010603,2]
[402911031,1768984157116,-2293.46762454,0.00010603,2]
[402911032,1768984160089,-2425.00778461,0.00010603,2]
[402911033,1768984160112,-214.3751941,0.00010657,2]
[402911034,1768984160136,-5000.0,0.0001071,2]
[402911035,1768984160157,-300.0,0.00010815,2]
[402911036,1768984160180,-4787.36171433,0.00010818,2]
[402911037,1768984160201,-2556.0329127,0.00011009,2]
[402911064,1768984232342,-1779.08496149,0.00010392,2]
[402911065,1768984232353,-534.54761844,0.00010392,2]
[402911066,1768984232365,-333.26854577,0.00010392,2]
[402911072,1768984232550,-566.0,0.00010392,2]
[402911073,1768984232560,-147.12990956,0.00010497,2]
[402911107,1768984238442,-2738.52640998,0.00010497,2]
[402911109,1768984238452,-222.20447002,0.00011008,2]
[402911111,1768984238463,-77.79552998,0.00011008,2]
[402911113,1768984238473,-300.0,0.00011008,2]
[402911115,1768984238482,-434.0,0.00011008,2]
[402911117,1768984238491,-263.20403035,0.00011009,2]
[402911120,1768984238506,-3535.89918506,0.00011009,2]
[402911148,1768984240737,-661.98869106,0.00011009,2]
[402911149,1768984240748,-675.61857851,0.00011009,2]
[402911155,1768984243812,-2317.90951252,0.00011009,2]
[402911156,1768984243822,-765.1,0.00011607,2]
[402911157,1768984243831,-500.0,0.00011888,2]
[402911158,1768984243840,-137.14048672,0.00011888,2]
[402911164,1768984246616,-362.85951328,0.00011888,2]
[402911165,1768984246625,-306.19437126,0.00011888,2]
[402911166,1768984246634,-6936.14942286,0.00011889,2]
[402911167,1768984246643,-418.0,0.00012097,2]
[402911168,1768984246652,-252.96272904,0.00012657,2]
[402911169,1768984246673,-155.796,0.00012746,2]
[402911170,1768984246688,-156.8168034,0.00012837,2]
[402911171,1768984246708,-33743.6854748,0.00012837,2]
[402911172,1768984246727,-257.10874141,0.00013223,2]
[402911173,1768984246746,-500.0,0.00013273,2]
[402911174,1768984246762,-500.0,0.00013273,2]
[402911175,1768984246779,-500.0,0.00013273,2]
[402911176,1768984246793,-630.83650695,0.00013273,2]
[402911177,1768984246809,-500.0,0.00013273,2]
[402911178,1768984246828,-332.12150729,0.00013273,2]
[402911179,1768984246847,-500.0,0.00013273,2]
[402911180,1768984246861,-500.0,0.00013273,2]
[402911181,1768984246876,-500.0,0.00013273,2]
[402911182,1768984246893,-500.0,0.00013273,2]
[402911183,1768984246908,-500.0,0.00013273,2]
[402911184,1768984246922,-500.0,0.00013273,2]
[402911185,1768984246939,-500.0,0.00013273,2]
[402911186,1768984246955,-153.00266868,0.00013424,2]
[402911187,1768984246969,-500.0,0.00013424,2]
[402911188,1768984246984,-267.48676937,0.00013531,2]
[402911189,1768984246998,-387.49127354,0.00013531,2]
[402911190,1768984247013,-9518.0097189,0.00013532,2]
[402911191,1768984247028,-500.0,0.00013561,2]
[402911192,1768984247042,-500.0,0.00013698,2]
[402911193,1768984247060,-500.0,0.00013698,2]
[402911194,1768984247075,-500.0,0.00013698,2]
[402911195,1768984247091,-500.0,0.00013698,2]
[402911196,1768984247105,-500.0,0.00013698,2]
[402911197,1768984247123,-500.0,0.00013698,2]
[402911198,1768984247138,-500.0,0.00013698,2]
[402911199,1768984247153,-500.0,0.00013698,2]
[402911200,1768984247169,-500.0,0.00013698,2]
[402911201,1768984247184,-1000.0,0.00013699,2]
[402911202,1768984247199,-1106.432644,0.00013699,2]
[402911203,1768984247215,-500.0,0.00013699,2]
[402911204,1768984247230,-501.23330465,0.00013699,2]
[402911205,1768984247244,-526.67002344,0.00013699,2]
[402911206,1768984247258,-500.0,0.00013699,2]
[402911207,1768984247272,-500.0,0.00013699,2]
[402911208,1768984247287,-500.0,0.00013699,2]
[402911209,1768984247302,-500.0,0.00013699,2]
[402911210,1768984247317,-500.0,0.00013699,2]
[402911211,1768984247333,-495.22902253,0.00013699,2]
[402911212,1768984247347,-500.0,0.00013699,2]
[402911213,1768984247365,-500.0,0.00013699,2]
[402911214,1768984247381,-500.0,0.00013699,2]
[402911215,1768984247396,-253.24401436,0.00013699,2]
[402911216,1768984247411,-500.0,0.00013699,2]
[402911217,1768984247427,-500.0,0.00013699,2]
[402911218,1768984247442,-500.0,0.00013699,2]
[402911219,1768984247457,-500.0,0.00013699,2]
[402911220,1768984247473,-520.05417042,0.00013699,2]
[402911221,1768984247489,-500.0,0.00013699,2]
[402911222,1768984247504,-500.0,0.00013699,2]
[402911223,1768984247518,-500.0,0.00013699,2]
[402911224,1768984247534,-500.0,0.00013699,2]
[402911225,1768984247549,-524.94977963,0.00013699,2]
[402911226,1768984247565,-500.0,0.00013699,2]
[402911227,1768984247580,-1000.0,0.00013821,2]
[402911228,1768984247596,-1000.0,0.00013821,2]
[402911229,1768984247611,-1000.0,0.00013821,2]
[402911230,1768984247625,-1000.0,0.00013821,2]
[402911231,1768984247640,-1000.0,0.00013821,2]
[402911232,1768984247657,-319.9698034,0.00013829,2]
[402911233,1768984247672,-558.41887194,0.00013835,2]
[402911234,1768984247687,-1000.0,0.00014247,2]
[402911235,1768984247701,-1000.0,0.00014247,2]
[402911236,1768984247716,-1000.0,0.00014247,2]
[402911237,1768984247731,-1000.0,0.00014247,2]
[402911238,1768984247746,-1001.58207676,0.00014247,2]
[402911239,1768984247760,-998.0,0.00014247,2]
[402911240,1768984247774,-592.31797826,0.00014368,2]
[402911241,1768984247788,-164.98069196,0.00014368,2]
[402911242,1768984247804,-1500.0,0.00014368,2]
[402911243,1768984247819,-1419.32912703,0.00014368,2]
[402911244,1768984247833,-291.55026398,0.00014657,2]
[402911245,1768984247847,-7529.233944,0.00014834,2]
[402911246,1768984247863,-375.75176376,0.00014979,2]
[402911247,1768984247877,-199.095461,0.00015068,2]
[402911248,1768984247892,-390.81,0.00015069,3]
[402911249,1768984247909,-195.4,0.00015069,3]
[402911250,1768984247924,-586.24,0.00015069,3]
[402911251,1768984247938,-500.0,0.00015078,2]
[402911252,1768984247952,-500.0,0.00015078,2]
[402911253,1768984247967,-500.0,0.00015078,2]
[402911254,1768984247981,-500.0,0.00015078,2]
[402911255,1768984247995,-500.0,0.00015078,2]
[402911256,1768984248008,-500.0,0.00015078,2]
[402911257,1768984248018,-500.0,0.00015078,2]
[402911258,1768984248027,-543.79517745,0.00015078,2]
[402911259,1768984248037,-5019.5257125,0.00015078,2]
[402911260,1768984248313,-151.0,0.00015078,2]
[402911261,1768984248336,-143047.21268037,0.00015079,3]
[402911262,1768984248346,-151.0,0.00015079,2]
[402911263,1768984248356,-181.304,0.00015089,2]
[402911264,1768984248365,-2123.7550328,0.00015258,2]
[402911265,1768984248375,-1679.9991757,0.0001528,2]
[402911266,1768984248384,-272.20532003,0.00015451,2]
[402911267,1768984248394,-473.8738006,0.00015643,2]
[402911268,1768984248404,-151.0,0.000159,2]
[402911269,1768984248414,-375.75176373,0.00016004,2]
[402911270,1768984248423,-151.0,0.000163,2]
[402911271,1768984248432,-30000.0,0.00016424,2]
[402911272,1768984248442,-445.202766,0.00016424,2]
[402911273,1768984248450,-168.3888056,0.00016424,2]
[402911274,1768984248460,-151.0,0.00016424,2]
[402911275,1768984248469,-300.0,0.00016424,2]
[402911276,1768984248478,-151.55003087,0.00016424,2]
[402911277,1768984248487,-2150.738,0.00016424,2]
[402911278,1768984248496,-151.0,0.00016424,2]
[402911279,1768984248505,-156.64558,0.00016424,2]
[402911280,1768984248514,-162.380719,0.00016424,2]
[402911281,1768984248523,-168.3888056,0.00016424,2]
[402911282,1768984248532,-174.61919141,0.00016424,2]
[402911283,1768984248541,-181.08010149,0.00016424,2]
[402911284,1768984248550,-187.78006525,0.00016424,2]
[402911285,1768984248559,-194.72792766,0.00016424,2]
[402911286,1768984248568,-201.93286099,0.00016424,2]
[402911287,1768984248578,-209.40437684,0.00016424,2]
[402911288,1768984248587,-217.15233878,0.00016424,2]
[402911289,1768984248596,-225.18697532,0.00016424,2]
[402911290,1768984248604,-233.51889341,0.00016424,2]
[402911291,1768984248614,-242.15909246,0.00016424,2]
[402911292,1768984248623,-251.11897888,0.00016424,2]
[402911293,1768984248631,-260.4103811,0.00016424,2]
[402911294,1768984248641,-270.0455652,0.00016424,2]
[402911295,1768984248650,-280.03725112,0.00016424,2]
[402911296,1768984248659,-290.39862941,0.00016424,2]
[402911297,1768984248667,-301.1433787,0.00016424,2]
[402911298,1768984248676,-151.0,0.00016424,2]
[402911299,1768984248685,-318.42045037,0.00016438,2]
[402911300,1768984248694,-500.0,0.00016438,2]
[402911301,1768984248703,-151.0,0.00016438,2]
[402911302,1768984248712,-151.0,0.00016438,2]
[402911303,1768984248721,-201.718084,0.00016438,2]
[402911304,1768984248730,-250.256274,0.00016438,2]
[402911305,1768984248739,-250.256274,0.00016438,2]
[402911306,1768984248748,-250.256274,0.00016438,2]
[402911307,1768984248757,-250.256274,0.00016438,2]
[402911308,1768984248766,-250.256274,0.00016438,2]
[402911309,1768984248775,-250.256274,0.00016438,2]
[402911310,1768984248784,-250.256274,0.00016438,2]
[402911311,1768984248794,-250.256274,0.00016438,2]
[402911312,1768984248803,-250.256274,0.00016438,2]
[402911313,1768984248812,-250.256274,0.00016438,2]
[402911314,1768984248821,-250.256274,0.00016438,2]
[402911315,1768984248831,-250.256274,0.00016438,2]
[402911316,1768984248840,-781.62,0.00016439,3]
[402911317,1768984248850,-390.8,0.00016439,3]
[402911318,1768984248859,-391.0234663,0.00016537,2]
[402911319,1768984248871,-613.5181967,0.00016537,2]
[402911320,1768984248880,-602.8966481,0.00016537,2]
[402911321,1768984248890,-309.0312214,0.00016537,2]
[402911322,1768984248901,-601.2295091,0.00016537,2]
[402911323,1768984248914,-614.9468206,0.00016537,2]
[402911324,1768984248925,-390.949525,0.00016537,2]
[402911325,1768984248934,-304.4605052,0.00016537,2]
[402911326,1768984248943,-330.13779892,0.00016657,2]
[402911327,1768984248953,-151.0,0.000167,2]
[402911328,1768984248962,-1041.66666667,0.00016875,2]
[402911329,1768984248971,-25382.30823433,0.00016972,2]
[402911330,1768984248982,-461.67526834,0.00016972,2]
[402911331,1768984248991,-151.0,0.00016972,2]
[402911332,1768984249002,-2230.315306,0.00016972,2]
[402911333,1768984249011,-153.422386,0.00016972,2]
[402911334,1768984249021,-500.0,0.00016986,2]
[402911335,1768984249030,-375.75176373,0.00017029,2]
[402911336,1768984249040,-151.0,0.000171,2]
[402911337,1768984249052,-450.49338328,0.00017106,2]
[402911338,1768984249061,-1800.17155958,0.00017106,2]
[402911339,1768984249070,-1368.0,0.00017119,2]
[402911340,1768984249079,-629.0,0.00017119,2]
[402911341,1768984249090,-150.0,0.00017302,2]
[402911342,1768984249099,-150.0,0.00017302,2]
[402911343,1768984249108,-150.0,0.00017302,2]
[402911344,1768984249120,-3877.0,0.000174,2]
[402911345,1768984249129,-151.0,0.000175,2]
[402911346,1768984249139,-151.0,0.000175,2]
[402911347,1768984249148,-478.75725327,0.0001752,2]
[402911348,1768984249157,-151.0,0.0001752,2]
[402911349,1768984249167,-2312.83697232,0.0001752,2]
[402911350,1768984249176,-500.0,0.00017534,2]
[402911351,1768984249186,-250.256274,0.00017628,2]
[402911352,1768984249196,-250.256274,0.00017628,2]
[402911353,1768984249205,-250.256274,0.00017628,2]
[402911354,1768984249214,-250.256274,0.00017628,2]
[402911355,1768984249224,-250.256274,0.00017628,2]
[402911356,1768984249233,-250.256274,0.00017628,2]
[402911357,1768984249243,-250.256274,0.00017628,2]
[402911358,1768984249253,-250.256267,0.00017628,2]
[402911359,1768984249263,-160.0,0.0001772,2]
[402911360,1768984249272,-160.0,0.0001772,2]
[402911361,1768984249281,-3702.0,0.0001772,2]
[402911362,1768984249291,-151.0,0.00017808,2]
[402911363,1768984249300,-156.984406,0.00017808,2]
[402911364,1768984249311,-151.0,0.000179,2]
[402911365,1768984249321,-729.0,0.00017907,2]
[402911366,1768984249330,-1509.0,0.00018,2]
[402911367,1768984249339,-851.0,0.00018,2]
[402911368,1768984249349,-1000.0,0.00018,18]
[402911369,1768984249358,-151.0,0.00018,2]
[402911370,1768984249368,-3877.0,0.0001804,2]
[402911371,1768984249378,-375.75176373,0.00018053,2]
[402911372,1768984249388,-496.47127164,0.00018068,2]
[402911373,1768984249397,-151.0,0.00018068,2]
[402911374,1768984249407,-2398.4119403,0.00018068,2]
[402911375,1768984249417,-500.0,0.00018082,2]
[402911376,1768984249426,-151.0,0.000184,2]
[402911377,1768984249436,-3877.0,0.00018419,2]
[402911378,1768984249445,-151.0,0.000185,2]
[402911379,1768984249454,-176.0,0.00018521,3]
[402911380,1768984249464,-445.202766,0.00018616,2]
[402911381,1768984249474,-151.0,0.00018616,2]
[402911382,1768984249483,-2150.738,0.00018616,2]
[402911383,1768984249492,-63735.88991184,0.0001862,2]
[402911384,1768984249502,-500.0,0.0001863,2]
[402911385,1768984249511,-368.72533386,0.00018657,2]
[402911386,1768984249521,-3236.0,0.0001868,2]
[402911387,1768984249530,-151.0,0.000188,2]
[402911388,1768984249539,-303.10001603,0.000189,2]
[402911389,1768984249549,-303.10001603,0.000189,2]
[402911390,1768984249558,-3877.0,0.0001898,2]
[402911391,1768984249568,-12254.0,0.00019,2]
[402911392,1768984249577,-83137.4331618,0.00019,2]
[402911395,1768984818807,-300.0,0.00010726,2]
[402911396,1768984820890,-300.0,0.00010726,2]
[402911399,1768985241366,-217.7735355,0.00010408,2]
[402911404,1768985354086,-2682.18311812,0.00010408,2]
[402911405,1768985374101,-2100.04334638,0.00010408,2]
[402911406,1768985374121,-570.0,0.00010726,2]
[402911407,1768985374140,-300.0,0.00011467,2]
[402911408,1768985374159,-300.0,0.00011468,2]
[402911409,1768985374179,-1200.0,0.00011468,2]
[402911410,1768985374200,-300.0,0.00011468,2]
[402911411,1768985374219,-726.2635817,0.00011469,2]
[402911437,1768985432394,-4400.0,0.00011355,2]
[402911439,1768985432404,-580.0,0.00011355,2]
[402911441,1768985432415,-210.24815635,0.00011412,2]
[402911443,1768985432425,-79.05194973,0.00011468,2]
[402911445,1768985432437,-220.94805027,0.00011468,2]
[402911446,1768985432446,-9273.7364183,0.00011469,2]
[402911447,1768985432455,-168.189142,0.0001183,2]
[402911448,1768985432466,-396.75207716,0.00012327,2]
[402911449,1768985432474,-500.0,0.00012327,2]
[402911450,1768985432484,-500.0,0.00012327,2]
[402911451,1768985432494,-232.09885158,0.00012327,2]
[402911452,1768985432503,-500.0,0.00012327,2]
[402911453,1768985432512,-500.0,0.00012327,2]
[402911454,1768985432521,-360.84731063,0.00012327,2]
[402911455,1768985432531,-500.0,0.00012327,2]
[402911456,1768985432539,-500.0,0.00012327,2]
[402911457,1768985432548,-500.0,0.00012327,2]
[402911458,1768985432558,-500.0,0.00012327,2]
[402911459,1768985432568,-500.0,0.00012327,2]
[402911460,1768985432578,-500.0,0.00012327,2]
[402911461,1768985432587,-500.0,0.00012327,2]
[402911462,1768985432597,-500.0,0.00012327,2]
[402911463,1768985432607,-500.0,0.00012327,2]
[402911464,1768985432616,-500.0,0.00012327,2]
[402911465,1768985432625,-500.0,0.00012327,2]
[402911466,1768985432635,-500.0,0.00012327,2]
[402911467,1768985432644,-193.81059381,0.00012327,2]
[402911468,1768985432654,-500.0,0.00012327,2]
[402911469,1768985432664,-500.0,0.00012327,2]
[402911470,1768985432675,-500.0,0.00012327,2]
[402911471,1768985432684,-500.0,0.00012327,2]
[402911472,1768985432694,-500.0,0.00012327,2]
[402911473,1768985432703,-500.0,0.00012327,2]
[402911474,1768985432713,-500.0,0.00012327,2]
[402911475,1768985432722,-10245.87544665,0.00012327,2]
[402911476,1768985432731,-392.7,0.00012329,2]
[402911477,1768985432740,-327.25,0.00012329,2]
[402911478,1768985432749,-272.71,0.00012329,2]
[402911479,1768985432758,-227.25,0.00012329,2]
[402911480,1768985432767,-189.38,0.00012329,2]
[402911481,1768985432956,-157.82,0.00012329,2]
[402911482,1768985432966,-789.1,0.00012329,2]
[402911483,1768985432977,-420.0,0.00012597,2]
[402911484,1768985432986,-223.0,0.00012614,2]
[402911485,1768985432996,-155.796,0.00012734,2]
[402911486,1768985433006,-491.79499355,0.00012736,2]
[402911487,1768985433017,-353.95337906,0.00012736,2]
[402911488,1768985433026,-97098.80859245,0.00012737,2]
[402911489,1768985433038,-716.65322861,0.00012737,2]
[402911490,1768985433049,-4485.65774862,0.00012737,2]
[402911491,1768985433061,-330.25242726,0.00012737,2]
[402911492,1768985433072,-475.4221411,0.00012737,2]
[402911493,1768985433082,-3494.90085194,0.00012737,2]
[402911494,1768985433093,-2220.46062426,0.00012737,2]
[402911518,1768985438472,-52797.64307596,0.00012737,2]
[402911520,1768985438484,-6429.496537,0.00012737,2]
[402911522,1768985438499,-6174.40484138,0.00012737,2]
[402911526,1768985438525,-5784.92901455,0.00012737,2]
[402911529,1768985438546,-3073.30305114,0.00012737,2]
[402911694,1768985446577,-14213.54852811,0.00012737,2]
[402911695,1768985446657,-201.56280582,0.00012737,2]
[402911696,1768985604218,-1503.24047098,0.00012205,2]
[402911697,1768985604239,-805.68,0.00012329,2]
[402911698,1768985604260,-272.23,0.00012329,2]
[402911699,1768985604282,-159.504,0.00012482,2]
[402911700,1768985604302,-997.3792479,0.0001261,2]
[402911701,1768985604322,-690.91695335,0.00012778,2]
[402911702,1768985604343,-300.0,0.00012877,2]
[402911703,1768985604362,-5108.44035996,0.00012878,2]
[402911704,1768985604382,-506.24643967,0.00012878,2]
[402911705,1768985604404,-550.95632438,0.00012878,2]
[402911706,1768985604424,-2860.33066885,0.000129,2]
[402911707,1768985604444,-161.14886831,0.00013273,2]
[402911708,1768985604466,-612.15783492,0.00013273,2]
[402911709,1768985604490,-333.60184896,0.00013273,2]
[402911710,1768985604511,-371.28937045,0.00013273,2]
[402911711,1768985604533,-500.0,0.00013273,2]
[402911712,1768985604555,-500.0,0.00013273,2]
[402911713,1768985604577,-500.0,0.00013273,2]
[402911714,1768985604603,-3360.3719959,0.00013273,2]
[402911715,1768985604624,-500.0,0.00013273,2]
[402911716,1768985604645,-158.06329208,0.00013273,2]
[402911717,1768985604667,-248.0928245,0.00013412,2]
[402911718,1768985604688,-1000.0,0.00013699,2]
[402911719,1768985604711,-500.0,0.00013699,2]
[402911720,1768985604731,-402.91907789,0.00013699,2]
[402911721,1768985604752,-270.08647364,0.00013699,2]
[402911722,1768985604776,-156.06333035,0.00013699,2]
[402911723,1768985604814,-158.06414244,0.00013699,2]
[402911724,1768985604835,-258.30481984,0.00013699,2]
[402911725,1768985604855,-500.0,0.00013699,2]
[402911726,1768985604889,-500.0,0.00013699,2]
[402911727,1768985604923,-158.06414229,0.00013699,2]
[402911728,1768985604946,-1000.0,0.00013821,2]
[402911729,1768985604968,-1000.0,0.00013821,2]
[402911730,1768985604989,-1000.0,0.00013821,2]
[402911731,1768985605010,-420.0,0.00014124,2]
[402911732,1768985605029,-329.92776227,0.00014247,2]
[402911733,1768985605048,-1000.0,0.00014247,2]
[402911734,1768985605068,-1500.0,0.00014368,2]
[402911735,1768985605088,-1500.0,0.00014368,2]
[402911736,1768985605107,-1500.0,0.00014368,2]
[402911737,1768985605129,-2860.33066879,0.00014766,2]
[402911738,1768985605148,-1500.0,0.00014795,2]
[402911739,1768985605167,-2000.0,0.00014916,2]
[402911740,1768985605187,-2000.0,0.00014916,2]
[402911741,1768985605207,-2000.0,0.00014916,2]
[402911742,1768985605226,-200.0,0.00014999,2]
[402911743,1768985605247,-218265.98545075,0.00015,2]
[402911745,1768985623399,214.5796323,0.00015,2]
[402911746,1768985649159,500.0,0.00013273,2]
[402911747,1768985649206,1000.0,0.00013821,2]
[402911748,1768985649266,1000.0,0.00014368,2]
[402911749,1768985649911,500.0,0.00013273,2]
[402911750,1768985649956,1000.0,0.00013821,2]
[402911751,1768985650012,1500.0,0.00014368,2]
[402911752,1768985650102,1710.88541207,0.00014916,2]
[402911753,1768985650437,500.0,0.00013273,2]
[402911754,1768985650473,1000.0,0.00013821,2]
[402911755,1768985650506,1500.0,0.00014368,2]
[402911756,1768985650558,481.77926784,0.00014916,2]
[402911757,1768985650651,500.0,0.00013699,2]
[402911758,1768985650706,923.34355094,0.00014795,2]
[402911759,1768985654877,1000.0,0.00014247,2]
[402911760,1768985705676,500.0,0.00013699,2]
[402911761,1768985705725,1000.0,0.00014247,2]
[402911762,1768985705783,1500.0,0.00014795,2]
[402911763,1768985763841,500.0,0.00012327,2]
[402911764,1768985763874,500.0,0.00012327,2]
[402911765,1768985763901,154.38577145,0.00012736,2]
[402911766,1768985763928,503.37916776,0.00012327,2]
[402911767,1768985768186,500.0,0.00012327,2]
[402911768,1768985768215,500.0,0.00012327,2]
[402911769,1768985768252,500.0,0.00012327,2]
[402911770,1768985768281,155.58828394,0.00012327,2]
[402911771,1768985768309,500.0,0.00012327,2]
[402911772,1768985768546,500.0,0.00012327,2]
[402911773,1768985768650,500.0,0.00012327,2]
[402911774,1768985770481,500.0,0.00012327,2]
[402911775,1768985775337,500.0,0.00012326,2]
[402911776,1768985775370,500.0,0.00012326,2]
[402911777,1768985775399,500.0,0.00012326,2]
[402911778,1768985775430,500.0,0.00012326,2]
[402911779,1768985775459,500.0,0.00012326,2]
[402911780,1768985775492,500.0,0.00012326,2]
[402911781,1768985775528,500.0,0.00012326,2]
[402911782,1768985775599,500.0,0.00012326,2]
[402911783,1768985775652,626.29850451,0.00012326,2]
[402911784,1768985775721,500.0,0.00012326,2]
[402911785,1768985775821,526.6209436,0.00012326,2]
[402911786,1768985775853,500.0,0.00012326,2]
[402911787,1768985775957,500.0,0.00012326,2]
[402911788,1768985775993,500.0,0.00012326,2]
[402911789,1768985776143,500.0,0.00012326,2]
[402911790,1768985776206,500.0,0.00012326,2]
[402911791,1768985776251,500.0,0.00012326,2]
[402911792,1768985776284,500.0,0.00012326,2]
[402911793,1768985776321,500.0,0.00012326,2]
[402911794,1768985776354,500.0,0.00012326,2]
[402911795,1768985776387,500.0,0.00012326,2]
[402911796,1768985776423,500.0,0.00012326,2]
[402911797,1768985776450,500.0,0.00012326,2]
[402911798,1768985776487,500.0,0.00012326,2]
[402911799,1768985776524,500.0,0.00012326,2]
[402911800,1768985777287,500.0,0.00012326,2]
[402911801,1768985777369,500.0,0.00012326,2]
[402911802,1768985784433,640.2688157,0.00014674,2]
[402911803,1768985785807,438.54936516,0.00012326,2]
[402911804,1768985785871,500.0,0.00012326,2]
[402911805,1768985830571,500.0,0.00013699,2]
[402911806,1768985830608,1000.0,0.00014247,2]
[402911807,1768985830898,1500.0,0.00014795,2]
[402911808,1768985852975,632.64562153,0.00012326,2]
[402911809,1768985859931,406.17647599,0.00012326,2]
[402911810,1768985870170,63918.6663333,0.00014674,2]
[402911811,1768985944230,165.67917531,0.00013273,2]
[402911812,1768985949662,500.0,0.00013699,2]
[402911813,1768985949714,1000.0,0.00014247,2]
[402911814,1768985949781,1500.0,0.00014795,2]
[402911816,1768986070952,500.0,0.00013699,2]
[402911817,1768986071195,1000.0,0.00014247,2]
[402911818,1768986071232,1500.0,0.00014795,2]
[402911820,1768986188335,500.0,0.00013273,2]
[402911821,1768986188400,528.51539771,0.00013821,2]
[402911823,1768986260782,3001.0,0.00015,2]
[402911826,1768986484083,500.0,0.00013699,2]
[402911827,1768986484147,329.92776227,0.00014247,2]
[402911872,1768986638715,-637.0,0.00015068,2]
[402911874,1768986638725,-222.67516325,0.00015068,2]
[402911876,1768986638735,-161.837078,0.00015068,2]
[402911878,1768986638747,-500.0,0.00015068,2]
[402911880,1768986638758,-500.0,0.00015068,2]
[402911882,1768986638769,-463.0053307,0.00015201,2]
[402911884,1768986638779,-177.10100625,0.000154,2]
[402911886,1768986638794,-259.72194777,0.000154,2]
[402911887,1768986638803,-213.86393387,0.000154,2]
[402911889,1768986638814,-159.504,0.00015582,2]
[402911891,1768986638826,-300.0,0.00015799,2]
[402911893,1768986638836,-300.0,0.00015799,2]
[402911895,1768986638846,-300.0,0.00015799,2]
[402911896,1768986638857,-157.58259481,0.000158,2]
[402911898,1768986638867,-941.85080684,0.00015878,2]
[402911900,1768986638877,-255.0,0.00015898,2]